fUST/lending_fUST_20250531
["ID","MTS","AMOUNT","RATE_DAILY","PERIOD"]
[363324264,1748675442141,-551.49890558,0.00018082,2]
[363324265,1748675442150,-430.0,0.00018082,2]
[363324266,1748675442159,-430.0,0.00018082,2]
[363324267,1748675442169,-478.57138431,0.00018082,2]
[363324268,1748675442179,-1564.52,0.00018082,2]
[363324269,1748675442188,-430.0,0.00018082,2]
[363324270,1748675442198,-430.0,0.00018082,2]
[363324271,1748675442207,-1368.07,0.00018082,2]
[363324272,1748675442217,-430.0,0.00018082,2]
[363324273,1748675442226,-430.0,0.00018082,2]
[363324274,1748675442234,-430.0,0.00018082,2]
[363324275,1748675442243,-430.0,0.00018082,2]
[363324276,1748675442252,-1836.76,0.00018082,2]
[363324277,1748675442261,-984.4,0.00018082,2]
[363324278,1748675442270,-430.0,0.00018082,2]
[363324279,1748675442280,-1000.0,0.00018082,2]
[363324280,1748675442290,-430.0,0.00018082,2]
[363324281,1748675442299,-430.0,0.00018082,2]
[363324282,1748675442309,-1087.98,0.00018082,2]
[363324283,1748675442318,-430.0,0.00018082,2]
[363324284,1748675442328,-430.0,0.00018082,2]
[363324285,1748675442337,-1305.54,0.00018082,2]
[363324286,1748675442347,-430.0,0.00018082,2]
[363324287,1748675442356,-430.0,0.00018082,2]
[363324288,1748675442366,-762.53,0.00018082,2]
[363324289,1748675442376,-430.0,0.00018082,2]
[363324290,1748675442385,-430.0,0.00018082,2]
[363324291,1748675442395,-430.0,0.00018082,2]
[363324292,1748675442405,-430.0,0.00018082,2]
[363324293,1748675442415,-458.1899109,0.00018082,2]
[363324295,1748675442424,-430.0,0.00018082,2]
[363324296,1748675442432,-430.0,0.00018082,2]
[363324297,1748675442442,-430.0,0.00018082,2]
[363324298,1748675442451,-430.0,0.00018082,2]
[363324299,1748675442460,-430.0,0.00018082,2]
[363324300,1748675442470,-670.17,0.00018082,2]
[363324301,1748675442479,-430.0,0.00018082,2]
[363324302,1748675442489,-430.0,0.00018082,2]
[363324303,1748675442498,-9557.33,0.00018082,2]
[363324304,1748675442511,-1320.23,0.00018082,2]
[363324305,1748675442528,-544.66,0.00018082,2]
[363324306,1748675442538,-588.59,0.00018082,2]
[363324307,1748675442548,-430.0,0.00018082,2]
[363324308,1748675442558,-314.84782018,0.00018083,3]
[363324309,1748675442568,-212.77096907,0.00018083,3]
[363324310,1748675442578,-430.0,0.00018083,2]
[363324311,1748675442588,-430.0,0.00018083,2]
[363324312,1748675442597,-430.0,0.00018083,2]
[363324313,1748675442607,-430.0,0.00018083,2]
[363324314,1748675442617,-430.0,0.00018083,2]
[363324315,1748675442626,-430.0,0.00018083,2]
[363324316,1748675442636,-430.0,0.00018083,2]
[363324317,1748675442646,-274.90808978,0.00018083,2]
[363324318,1748675442655,-505.29,0.00018083,2]
[363324319,1748675442664,-430.0,0.00018083,2]
[363324320,1748675442674,-434.86474218,0.00018083,2]
[363324321,1748675442684,-442.05823041,0.00018083,2]
[363324322,1748675442694,-437.08163645,0.00018083,2]
[363324323,1748675442703,-430.0,0.00018083,2]
[363324324,1748675442713,-430.0,0.00018083,2]
[363324325,1748675442724,-430.0,0.00018083,2]
[363324326,1748675442733,-493.54,0.00018083,2]
[363324327,1748675442743,-430.0,0.00018083,2]
[363324328,1748675442753,-430.0,0.00018083,2]
[363324329,1748675442763,-430.0,0.00018083,2]
[363324330,1748675442772,-835.97,0.00018083,2]
[363324331,1748675442782,-430.0,0.00018083,2]
[363324332,1748675442791,-439.80104381,0.00018083,2]
[363324333,1748675442803,-548.43,0.00018083,2]
[363324334,1748675442813,-2837.06,0.00018083,2]
[363324335,1748675442823,-618.69,0.00018083,2]
[363324336,1748675442832,-430.0,0.00018083,2]
[363324337,1748675442842,-430.0,0.00018083,2]
[363324338,1748675442851,-430.0,0.00018083,2]
[363324339,1748675442861,-253.78054374,0.00018135,2]
[363324340,1748675442870,-500.0,0.00018135,2]
[363324341,1748675442879,-471.01424625,0.00018135,2]
[363324342,1748675442889,-501.02187263,0.00018135,2]
[363324343,1748675442899,-500.0,0.00018135,2]
[363324344,1748675442908,-1000.0,0.00018164,2]
[363324345,1748675442918,-500.0,0.00018233,2]
[363324346,1748675442927,-500.0,0.00018233,2]
[363324348,1748675442937,-500.0,0.00018233,2]
[363324350,1748675442946,-2099.98804436,0.00018256,2]
[363324351,1748675442956,-501.89179774,0.00018276,2]
[363324353,1748675442966,-500.84432645,0.00018276,2]
[363324355,1748675442975,-480.71318086,0.00018277,2]
[363324357,1748675442984,-500.0,0.00018277,2]
[363324358,1748675442994,-500.0,0.00018277,2]
[363324360,1748675443004,-1000.0,0.00018307,2]
[363324361,1748675443013,-500.0,0.00018307,2]
[363324363,1748675443023,-506.04841963,0.00018341,2]
[363324364,1748675443033,-300.000001,0.00018354,2]
[363324365,1748675443042,-76803.20945822,0.00018356,3]
[363324366,1748675443052,-135188.86802936,0.00018356,2]
[363324367,1748675443062,-212.77096907,0.00018356,3]
[363324368,1748675443071,-430.0,0.00018356,2]
[363324369,1748675443080,-430.0,0.00018356,2]
[363324370,1748675443090,-1564.52,0.00018356,2]
[363324371,1748675443100,-430.0,0.00018356,2]
[363324373,1748675443110,-338.95189379,0.00018356,2]
[363324374,1748675443119,-1368.07,0.00018356,2]
[363324375,1748675443129,-457.36841661,0.00018356,2]
[363324376,1748675443139,-575.37369772,0.00018356,2]
[363324377,1748675443266,-430.0,0.00018356,2]
[363324378,1748675443277,-430.0,0.00018356,2]
[363324379,1748675443287,-1836.76,0.00018356,2]
[363324380,1748675443296,-984.4,0.00018356,2]
[363324381,1748675443306,-430.0,0.00018356,2]
[363324382,1748675443315,-430.0,0.00018356,2]
[363324383,1748675443325,-430.0,0.00018356,2]
[363324384,1748675443334,-1087.98,0.00018356,2]
[363324385,1748675443344,-430.0,0.00018356,2]
[363324386,1748675443354,-524.95,0.00018356,2]
[363324387,1748675443363,-1305.54,0.00018356,2]
[363324388,1748675443373,-430.0,0.00018356,2]
[363324389,1748675443383,-430.0,0.00018356,2]
[363324390,1748675443393,-762.53,0.00018356,2]
[363324391,1748675443403,-430.0,0.00018356,2]
[363324392,1748675443412,-430.0,0.00018356,2]
[363324393,1748675443422,-430.0,0.00018356,2]
[363324394,1748675443435,-430.0,0.00018356,2]
[363324395,1748675443451,-430.0,0.00018356,2]
[363324396,1748675443464,-430.0,0.00018356,2]
[363324397,1748675443478,-430.0,0.00018356,2]
[363324398,1748675443487,-430.0,0.00018356,2]
[363324399,1748675443498,-670.17,0.00018356,2]
[363324400,1748675443508,-430.0,0.00018356,2]
[363324401,1748675443517,-9557.33,0.00018356,2]
[363324402,1748675443527,-1320.23,0.00018356,2]
[363324403,1748675443536,-544.66,0.00018356,2]
[363324404,1748675443546,-588.59,0.00018356,2]
[363324405,1748675443555,-430.0,0.00018356,2]
[363324406,1748675443565,-842.5625,0.00018357,3]
[363324407,1748675443575,-12664.98044988,0.00018357,3]
[363324408,1748675443585,-432.10339866,0.00018357,2]
[363324409,1748675443595,-430.0,0.00018357,2]
[363324410,1748675443605,-430.0,0.00018357,2]
[363324411,1748675443614,-430.0,0.00018357,2]
[363324412,1748675443624,-430.0,0.00018357,2]
[363324413,1748675443633,-430.0,0.00018357,2]
[363324414,1748675443642,-430.0,0.00018357,2]
[363324415,1748675443652,-430.0,0.00018357,2]
[363324416,1748675443662,-430.0,0.00018357,2]
[363324417,1748675443671,-430.0,0.00018357,2]
[363324418,1748675443681,-493.54,0.00018357,2]
[363324419,1748675443690,-430.0,0.00018357,2]
[363324420,1748675443699,-430.0,0.00018357,2]
[363324421,1748675443709,-430.0,0.00018357,2]
[363324422,1748675443718,-180.649888,0.00018357,2]
[363324423,1748675443731,-835.97,0.00018357,2]
[363324424,1748675443740,-1000.0,0.00018357,2]
[363324425,1748675443751,-151.0,0.00018357,2]
[363324426,1748675443760,-430.0,0.00018357,2]
[363324427,1748675443771,-151.0,0.00018357,2]
[363324428,1748675443780,-548.43,0.00018357,2]
[363324429,1748675443789,-2837.06,0.00018357,2]
[363324430,1748675443799,-618.69,0.00018357,2]
[363324431,1748675443808,-430.0,0.00018357,2]
[363324432,1748675443817,-151.0,0.00018357,2]
[363324433,1748675443827,-430.0,0.00018357,2]
[363324434,1748675443836,-151.0,0.00018357,2]
[363324435,1748675443845,-151.0,0.00018357,2]
[363324436,1748675443854,-398.1,0.00018357,2]
[363324437,1748675443863,-151.0,0.00018357,2]
[363324438,1748675443872,-217.01066754,0.00018379,2]
[363324439,1748675443881,-2475.13567253,0.00018383,2]
[363324440,1748675443890,-500.3439553,0.00018417,2]
[363324441,1748675443900,-500.0,0.00018417,2]
[363324442,1748675443910,-1006.63167731,0.00018531,2]
[363324443,1748675443919,-500.0,0.00018531,2]
[363324444,1748675443929,-1000.0,0.00018561,2]
[363324445,1748675443938,-500.0,0.00018561,2]
[363324446,1748675443947,-500.0,0.00018561,2]
[363324447,1748675443956,-523.91526245,0.0001863,2]
[363324448,1748675443966,-430.0,0.0001863,2]
[363324449,1748675443975,-1564.52,0.0001863,2]
[363324450,1748675443984,-430.0,0.0001863,2]
[363324451,1748675443994,-1368.07,0.0001863,2]
[363324452,1748675444003,-430.0,0.0001863,2]
[363324453,1748675444013,-430.0,0.0001863,2]
[363324454,1748675444022,-1836.76,0.0001863,2]
[363324455,1748675444032,-984.4,0.0001863,2]
[363324456,1748675444042,-514.87,0.0001863,2]
[363324457,1748675444051,-430.0,0.0001863,2]
[363324458,1748675444060,-430.0,0.0001863,2]
[363324459,1748675444070,-1087.98,0.0001863,2]
[363324460,1748675444079,-430.0,0.0001863,2]
[363324461,1748675444089,-1305.54,0.0001863,2]
[363324462,1748675444099,-430.0,0.0001863,2]
[363324463,1748675444108,-430.0,0.0001863,2]
[363324464,1748675444117,-762.53,0.0001863,2]
[363324465,1748675444127,-496.57,0.0001863,2]
[363324466,1748675444136,-430.0,0.0001863,2]
[363324467,1748675444145,-430.0,0.0001863,2]
[363324468,1748675444155,-430.0,0.0001863,2]
[363324469,1748675444164,-430.0,0.0001863,2]
[363324470,1748675444173,-430.0,0.0001863,2]
[363324471,1748675444183,-430.0,0.0001863,2]
[363324472,1748675444194,-430.0,0.0001863,2]
[363324473,1748675444204,-670.17,0.0001863,2]
[363324474,1748675444213,-295.63124419,0.0001863,2]
[363324475,1748675444223,-9557.33,0.0001863,2]
[363324476,1748675444232,-1320.23,0.0001863,2]
[363324477,1748675444242,-544.66,0.0001863,2]
[363324478,1748675444252,-588.59,0.0001863,2]
[363324479,1748675444262,-430.0,0.0001863,2]
[363324480,1748675444271,-418.13,0.00018631,2]
[363324481,1748675444281,-430.0,0.00018631,2]
[363324482,1748675444301,-430.0,0.00018631,2]
[363324483,1748675444311,-430.0,0.00018631,2]
[363324484,1748675444321,-430.0,0.00018631,2]
[363324485,1748675444331,-430.0,0.00018631,2]
[363324486,1748675444341,-430.0,0.00018631,2]
[363324487,1748675444351,-493.54,0.00018631,2]
[363324488,1748675444361,-430.0,0.00018631,2]
[363324489,1748675444371,-430.0,0.00018631,2]
[363324490,1748675444381,-430.0,0.00018631,2]
[363324491,1748675444391,-835.97,0.00018631,2]
[363324492,1748675444401,-1000.0,0.00018631,2]
[363324493,1748675444411,-430.0,0.00018631,2]
[363324494,1748675444421,-548.43,0.00018631,2]
[363324495,1748675444430,-2837.06,0.00018631,2]
[363324496,1748675444440,-618.69,0.00018631,2]
[363324497,1748675444450,-439.28298965,0.00018631,2]
[363324498,1748675444460,-447.27521055,0.00018631,2]
[363324499,1748675444470,-2475.13567253,0.00018693,2]
[363324500,1748675444480,-537.46095021,0.00018781,2]
[363324501,1748675444490,-500.0,0.00018781,2]
[363324502,1748675444501,-500.0,0.00018781,2]
[363324503,1748675444510,-152.02490892,0.00018796,2]
[363324504,1748675444520,-1280.0,0.00018796,2]
[363324505,1748675444530,-152.92049861,0.00018796,2]
[363324506,1748675444540,-151.0,0.00018796,2]
[363324507,1748675444551,-151.0,0.00018796,2]
[363324508,1748675444561,-152.60665104,0.00018796,2]
[363324509,1748675444571,-151.83271428,0.00018796,2]
[363324510,1748675444581,-151.65898222,0.00018796,2]
[363324511,1748675444591,-152.79536372,0.00018796,2]
[363324512,1748675444602,-151.0,0.00018796,2]
[363324513,1748675444611,-151.0,0.00018796,2]
[363324514,1748675444621,-1280.0,0.00018823,2]
[363324515,1748675444631,-151.0,0.00018823,2]
[363324516,1748675444640,-151.0,0.00018823,2]
[363324517,1748675444651,-153.32813419,0.00018823,2]
[363324518,1748675444660,-151.0,0.00018823,2]
[363324519,1748675444670,-160.0,0.00018836,2]
[363324520,1748675444679,-314.84782018,0.00018836,2]
[363324521,1748675444690,-1280.0,0.00018851,2]
[363324522,1748675444700,-201.81375087,0.00018851,2]
[363324523,1748675444710,-211.27293476,0.00018851,2]
[363324524,1748675444720,-151.0,0.00018851,2]
[363324525,1748675444733,-1280.0,0.00018878,2]
[363324526,1748675444743,-151.0,0.00018878,2]
[363324527,1748675444753,-1046.51152327,0.000189,2]
[363324528,1748675444763,-430.0,0.00018904,2]
[363324529,1748675444775,-1564.52,0.00018904,2]
[363324530,1748675444785,-430.0,0.00018904,2]
[363324531,1748675444796,-1368.07,0.00018904,2]
[363324532,1748675444808,-551.05617935,0.00018904,2]
[363324533,1748675444818,-510.03,0.00018904,2]
[363324534,1748675444828,-1836.76,0.00018904,2]
[363324535,1748675444838,-984.4,0.00018904,2]
[363324536,1748675444848,-430.0,0.00018904,2]
[363324537,1748675444858,-430.0,0.00018904,2]
[363324538,1748675444868,-1087.98,0.00018904,2]
[363324539,1748675444878,-1305.54,0.00018904,2]
[363324540,1748675444887,-430.0,0.00018904,2]
[363324541,1748675444897,-430.0,0.00018904,2]
[363324542,1748675444906,-762.53,0.00018904,2]
[363324543,1748675444916,-430.0,0.00018904,2]
[363324544,1748675444925,-430.0,0.00018904,2]
[363324545,1748675444935,-430.0,0.00018904,2]
[363324546,1748675444944,-536.69708935,0.00018904,2]
[363324547,1748675444953,-430.0,0.00018904,2]
[363324548,1748675444963,-430.0,0.00018904,2]
[363324549,1748675444973,-430.0,0.00018904,2]
[363324550,1748675444982,-670.17,0.00018904,2]
[363324551,1748675444992,-9557.33,0.00018904,2]
[363324552,1748675445003,-1320.23,0.00018904,2]
[363324553,1748675445013,-544.66,0.00018904,2]
[363324554,1748675445023,-588.59,0.00018904,2]
[363324555,1748675445032,-430.0,0.00018904,2]
[363324556,1748675445042,-430.0,0.00018905,2]
[363324557,1748675445051,-430.0,0.00018905,2]
[363324558,1748675445061,-430.0,0.00018905,2]
[363324559,1748675445071,-430.0,0.00018905,2]
[363324560,1748675445080,-162.97156676,0.00018905,2]
[363324561,1748675445090,-430.0,0.00018905,2]
[363324562,1748675445099,-151.0,0.00018905,2]
[363324563,1748675445110,-152.089388,0.00018905,2]
[363324564,1748675445120,-493.54,0.00018905,2]
[363324565,1748675445130,-430.0,0.00018905,2]
[363324566,1748675445139,-430.0,0.00018905,2]
[363324567,1748675445149,-151.0,0.00018905,2]
[363324568,1748675445159,-430.0,0.00018905,2]
[363324569,1748675445168,-266.045581,0.00018905,2]
[363324570,1748675445178,-835.97,0.00018905,2]
[363324571,1748675445187,-447.26478239,0.00018905,2]
[363324572,1748675445197,-151.0,0.00018905,2]
[363324573,1748675445207,-548.43,0.00018905,2]
[363324574,1748675445216,-2837.06,0.00018905,2]
[363324575,1748675445226,-618.69,0.00018905,2]
[363324576,1748675445236,-151.0,0.00018905,2]
[363324577,1748675445246,-151.0,0.00018905,2]
[363324578,1748675445255,-1280.0,0.00018906,2]
[363324579,1748675445265,-205.68099355,0.00018906,2]
[363324580,1748675445275,-1280.0,0.00018933,2]
[363324581,1748675445285,-160.0,0.00018942,2]
[363324582,1748675445295,-1280.0,0.0001896,2]
[363324583,1748675445304,-160.0,0.00018962,2]
[363324584,1748675445314,-160.0,0.00018962,2]
[363324585,1748675445323,-842.5625,0.00018962,2]
[363324586,1748675445333,-423.4608169,0.00018962,2]
[363324587,1748675445342,-229.3428821,0.00018962,2]
[363324588,1748675445352,-212.77096907,0.00018962,2]
[363324589,1748675445362,-160.0,0.00018962,2]
[363324590,1748675445372,-160.0,0.00018962,2]
[363324591,1748675445381,-12664.98044988,0.00018962,2]
[363324592,1748675445391,-1000.0,0.0001897,2]
[363324593,1748675445400,-1280.0,0.00018988,2]
[363324594,1748675445410,-2475.13567253,0.00019003,2]
[363324596,1748675445420,-1280.0,0.00019015,2]
[363324597,1748675445430,-1280.0,0.00019043,2]
[363324598,1748675445440,-1280.0,0.0001907,2]
[363324599,1748675445450,-1280.0,0.00019097,2]
[363324600,1748675445460,-151.0,0.000191,2]
[363324601,1748675445469,-151.0,0.00019123,2]
[363324602,1748675445479,-151.0,0.00019123,2]
[363324603,1748675445488,-151.0,0.00019123,2]
[363324604,1748675445499,-151.0,0.00019123,2]
[363324605,1748675445508,-1280.0,0.00019125,2]
[363324606,1748675445518,-1280.0,0.00019152,2]
[363324607,1748675445528,-1000.0,0.00019177,2]
[363324608,1748675445538,-430.0,0.00019178,2]
[363324609,1748675445547,-1564.52,0.00019178,2]
[363324611,1748675445557,-430.0,0.00019178,2]
[363324612,1748675445566,-1368.07,0.00019178,2]
[363324613,1748675445576,-1836.76,0.00019178,2]
[363324614,1748675445585,-984.4,0.00019178,2]
[363324615,1748675445595,-507.71550259,0.00019178,2]
[363324616,1748675445604,-430.0,0.00019178,2]
[363324617,1748675445614,-1087.98,0.00019178,2]
[363324618,1748675445624,-1305.54,0.00019178,2]
[363324619,1748675445634,-430.0,0.00019178,2]
[363324620,1748675445643,-430.0,0.00019178,2]
[363324621,1748675445653,-762.53,0.00019178,2]
[363324622,1748675445663,-535.6,0.00019178,2]
[363324623,1748675445673,-430.0,0.00019178,2]
[363324625,1748675445683,-430.0,0.00019178,2]
[363324626,1748675445692,-430.0,0.00019178,2]
[363324627,1748675445702,-430.0,0.00019178,2]
[363324628,1748675445711,-177.51,0.00019178,2]
[363324629,1748675445721,-670.17,0.00019178,2]
[363324630,1748675445733,-9557.33,0.00019178,2]
[363324631,1748675445742,-1320.23,0.00019178,2]
[363324632,1748675445752,-544.66,0.00019178,2]
[363324633,1748675445763,-588.59,0.00019178,2]
[363324634,1748675445772,-500.0,0.00019178,2]
[363324635,1748675445782,-500.0,0.00019178,2]
[363324639,1748675445915,-500.0,0.00019178,2]
[363324640,1748675445926,-513.19965499,0.00019178,2]
[363324642,1748675445935,-500.0,0.00019178,2]
[363324643,1748675445946,-500.0,0.00019178,2]
[363324645,1748675445955,-430.0,0.00019178,2]
[363324646,1748675445964,-448.43496,0.00019178,2]
[363324647,1748675445973,-434.37216938,0.00019179,2]
[363324648,1748675445983,-430.0,0.00019179,2]
[363324649,1748675445992,-430.0,0.00019179,2]
[363324650,1748675446002,-2897.171834,0.00019179,2]
[363324651,1748675446011,-2897.171834,0.00019179,2]
[363324652,1748675446021,-151.0,0.00019179,2]
[363324653,1748675446030,-430.0,0.00019179,2]
[363324654,1748675446041,-493.54,0.00019179,2]
[363324655,1748675446050,-430.0,0.00019179,2]
[363324656,1748675446060,-430.0,0.00019179,2]
[363324657,1748675446070,-430.0,0.00019179,2]
[363324658,1748675446079,-835.97,0.00019179,2]
[363324659,1748675446090,-151.0,0.00019179,2]
[363324660,1748675446100,-152.087997,0.00019179,2]
[363324661,1748675446109,-548.43,0.00019179,2]
[363324662,1748675446119,-2837.06,0.00019179,2]
[363324663,1748675446130,-618.69,0.00019179,2]
[363324664,1748675446140,-151.0,0.00019179,2]
[363324665,1748675446149,-151.0,0.00019179,2]
[363324666,1748675446159,-151.0,0.00019179,2]
[363324667,1748675446168,-151.0,0.00019179,2]
[363324668,1748675446178,-1280.0,0.0001918,2]
[363324669,1748675446187,-1280.0,0.00019207,2]
[363324670,1748675446196,-1280.0,0.00019234,2]
[363324671,1748675446207,-1000.0,0.0001926,2]
[363324672,1748675446216,-1280.0,0.00019262,2]
[363324673,1748675446225,-1280.0,0.00019289,2]
[363324674,1748675446234,-2475.13567253,0.00019314,2]
[363324675,1748675446243,-1280.0,0.00019317,2]
[363324676,1748675446253,-1280.0,0.00019344,2]
[363324677,1748675446268,-1280.0,0.00019371,2]
[363324678,1748675446286,-1280.0,0.00019399,2]
[363324679,1748675446296,-1296.0,0.00019426,2]
[363324680,1748675446306,-430.0,0.00019452,2]
[363324681,1748675446315,-1564.52,0.00019452,2]
[363324683,1748675446325,-430.0,0.00019452,2]
[363324685,1748675446334,-1368.07,0.00019452,2]
[363324687,1748675446345,-1836.76,0.00019452,2]
[363324688,1748675446354,-984.4,0.00019452,2]
[363324689,1748675446364,-1000.0,0.00019452,2]
[363324690,1748675446378,-430.0,0.00019452,2]
[363324691,1748675446395,-1087.98,0.00019452,2]
[363324692,1748675446404,-1305.54,0.00019452,2]
[363324693,1748675446414,-430.0,0.00019452,2]
[363324694,1748675446423,-430.0,0.00019452,2]
[363324695,1748675446432,-762.53,0.00019452,2]
[363324696,1748675446441,-326.5580705,0.00019452,2]
[363324697,1748675446450,-430.0,0.00019452,2]
[363324698,1748675446460,-430.0,0.00019452,2]
[363324699,1748675446469,-448.54,0.00019452,2]
[363324700,1748675446478,-670.17,0.00019452,2]
[363324701,1748675446486,-9557.33,0.00019452,2]
[363324702,1748675446496,-1320.23,0.00019452,2]
[363324703,1748675446504,-544.66,0.00019452,2]
[363324704,1748675446513,-588.59,0.00019452,2]
[363324705,1748675446522,-430.0,0.00019453,2]
[363324706,1748675446531,-2897.171834,0.00019453,2]
[363324707,1748675446540,-2897.171834,0.00019453,2]
[363324708,1748675446549,-151.0,0.00019453,2]
[363324709,1748675446558,-430.0,0.00019453,2]
[363324710,1748675446567,-493.54,0.00019453,2]
[363324711,1748675446577,-430.0,0.00019453,2]
[363324712,1748675446586,-430.0,0.00019453,2]
[363324713,1748675446594,-835.97,0.00019453,2]
[363324714,1748675446603,-548.43,0.00019453,2]
[363324715,1748675446612,-2837.06,0.00019453,2]
[363324716,1748675446621,-618.69,0.00019453,2]
[363324717,1748675446630,-1681.06,0.000195,2]
[363324718,1748675446638,-2475.13567253,0.00019624,2]
[363324719,1748675446647,-823.0,0.00019659,2]
[363324720,1748675446656,-430.0,0.00019726,2]
[363324721,1748675446665,-1564.52,0.00019726,2]
[363324722,1748675446674,-430.0,0.00019726,2]
[363324723,1748675446682,-1368.07,0.00019726,2]
[363324724,1748675446691,-1836.76,0.00019726,2]
[363324725,1748675446700,-984.4,0.00019726,2]
[363324726,1748675446708,-306.56,0.00019726,2]
[363324727,1748675446717,-1087.98,0.00019726,2]
[363324728,1748675446730,-1305.54,0.00019726,2]
[363324729,1748675446739,-430.0,0.00019726,2]
[363324730,1748675446749,-430.0,0.00019726,2]
[363324731,1748675446759,-762.53,0.00019726,2]
[363324732,1748675446768,-430.0,0.00019726,2]
[363324733,1748675446779,-250.86299075,0.00019726,2]
[363324734,1748675446789,-670.17,0.00019726,2]
[363324735,1748675446800,-9557.33,0.00019726,2]
[363324736,1748675446809,-1320.23,0.00019726,2]
[363324737,1748675446819,-544.66,0.00019726,2]
[363324738,1748675446828,-588.59,0.00019726,2]
[363324739,1748675446837,-151.0,0.00019727,2]
[363324740,1748675446847,-151.0,0.00019727,2]
[363324741,1748675446856,-388.040863,0.00019727,2]
[363324742,1748675446865,-388.040863,0.00019727,2]
[363324743,1748675446874,-430.0,0.00019727,2]
[363324744,1748675446883,-180.298232,0.00019727,2]
[363324745,1748675446892,-180.298232,0.00019727,2]
[363324746,1748675446901,-430.0,0.00019727,2]
[363324747,1748675446910,-835.796168,0.00019727,2]
[363324748,1748675446919,-835.796168,0.00019727,2]
[363324749,1748675446928,-493.54,0.00019727,2]
[363324750,1748675446937,-430.0,0.00019727,2]
[363324751,1748675446946,-430.0,0.00019727,2]
[363324752,1748675446956,-223.168507,0.00019727,2]
[363324753,1748675446965,-223.168507,0.00019727,2]
[363324754,1748675446974,-151.0,0.00019727,2]
[363324755,1748675446984,-151.0,0.00019727,2]
[363324756,1748675446993,-161.87132,0.00019727,2]
[363324757,1748675447003,-161.87132,0.00019727,2]
[363324758,1748675447012,-835.97,0.00019727,2]
[363324759,1748675447021,-1000.0,0.00019727,2]
[363324760,1748675447031,-548.43,0.00019727,2]
[363324761,1748675447040,-2837.06,0.00019727,2]
[363324762,1748675447049,-1598.13938,0.00019727,2]
[363324763,1748675447058,-1598.13938,0.00019727,2]
[363324764,1748675447068,-618.69,0.00019727,2]
[363324765,1748675447077,-330.474157,0.00019727,2]
[363324766,1748675447087,-330.474157,0.00019727,2]
[363324767,1748675447096,-502.26417517,0.00019793,2]
[363324768,1748675447106,-176.25974023,0.00019793,2]
[363324769,1748675447115,-501.67135089,0.00019793,2]
[363324770,1748675447125,-500.0,0.00019793,2]
[363324771,1748675447134,-500.0,0.00019793,2]
[363324772,1748675447144,-500.0,0.00019793,2]
[363324773,1748675447153,-500.0,0.00019793,2]
[363324774,1748675447162,-500.0,0.00019793,2]
[363324775,1748675447173,-600.0,0.00019793,2]
[363324776,1748675447183,-160.19413256,0.00019793,2]
[363324777,1748675447192,-151.0,0.000198,2]
[363324778,1748675447202,-609.492,0.00019922,2]
[363324779,1748675447211,-2475.13567253,0.00019934,2]
[363324780,1748675447221,-119641.0,0.0002,2]
[363324781,1748675447230,-151.0,0.0002,2]
[363324782,1748675447239,-151.624286,0.0002,2]
[363324783,1748675447249,-154.788343,0.0002,2]